fUST/lending_fUST_20250530
["ID","MTS","AMOUNT","RATE_DAILY","PERIOD"]
[363065354,1748565043611,-430.0,0.00019452,2]
[363065355,1748565043620,-430.0,0.00019452,2]
[363065356,1748565043629,-430.0,0.00019452,2]
[363065357,1748565043639,-430.0,0.00019452,2]
[363065358,1748565043648,-430.0,0.00019452,2]
[363065359,1748565043658,-430.0,0.00019452,2]
[363065360,1748565043668,-430.0,0.00019452,2]
[363065361,1748565043678,-430.0,0.00019452,2]
[363065362,1748565043688,-430.0,0.00019452,2]
[363065364,1748565043698,-1720.94,0.00019452,2]
[363065366,1748565043707,-420.0,0.00019452,2]
[363065368,1748565043716,-430.0,0.00019452,2]
[363065370,1748565043725,-1567.19,0.00019452,2]
[363065372,1748565043734,-430.0,0.00019452,2]
[363065374,1748565043744,-433.91,0.00019452,2]
[363065376,1748565043754,-372.71169947,0.00019452,2]
[363065378,1748565043763,-430.0,0.00019452,2]
[363065380,1748565043773,-2408.54,0.00019452,2]
[363065382,1748565043783,-430.0,0.00019452,2]
[363065384,1748565043792,-740.37,0.00019452,2]
[363065386,1748565043801,-504.24,0.00019452,2]
[363065388,1748565043811,-430.0,0.00019452,2]
[363065390,1748565043821,-374.19465851,0.00019452,2]
[363065392,1748565043831,-430.0,0.00019452,2]
[363065394,1748565043840,-430.0,0.00019452,2]
[363065396,1748565043853,-430.0,0.00019452,2]
[363065398,1748565043863,-430.0,0.00019452,2]
[363065400,1748565043872,-1178.01,0.00019452,2]
[363065402,1748565043881,-430.0,0.00019452,2]
[363065404,1748565043890,-430.0,0.00019452,2]
[363065406,1748565043899,-598.52,0.00019452,2]
[363065408,1748565043909,-430.0,0.00019452,2]
[363065410,1748565043918,-430.0,0.00019452,2]
[363065412,1748565043928,-430.0,0.00019452,2]
[363065414,1748565043937,-556.87,0.00019452,2]
[363065416,1748565043946,-430.0,0.00019452,2]
[363065418,1748565043955,-430.0,0.00019452,2]
[363065420,1748565043963,-520.6487883,0.00019452,2]
[363065422,1748565043972,-1193.21,0.00019452,2]
[363065424,1748565043982,-430.0,0.00019452,2]
[363065426,1748565043991,-430.0,0.00019452,2]
[363065428,1748565044000,-430.0,0.00019452,2]
[363065430,1748565044009,-430.0,0.00019452,2]
[363065432,1748565044018,-430.0,0.00019452,2]
[363065434,1748565044027,-430.0,0.00019452,2]
[363065436,1748565044036,-454.33843952,0.00019452,2]
[363065438,1748565044046,-500.0,0.00019452,2]
[363065440,1748565044055,-430.0,0.00019452,2]
[363065442,1748565044063,-430.0,0.00019452,2]
[363065443,1748565044073,-1220.26,0.00019452,2]
[363065445,1748565044083,-430.0,0.00019452,2]
[363065447,1748565044092,-430.0,0.00019452,2]
[363065449,1748565044104,-430.0,0.00019452,2]
[363065451,1748565044114,-430.0,0.00019452,2]
[363065454,1748565044123,-430.0,0.00019452,2]
[363065456,1748565044131,-613.5,0.00019452,2]
[363065458,1748565044141,-430.0,0.00019452,2]
[363065460,1748565044150,-430.0,0.00019452,2]
[363065462,1748565044159,-430.0,0.00019452,2]
[363065464,1748565044168,-430.0,0.00019452,2]
[363065466,1748565044177,-1480.27,0.00019452,2]
[363065468,1748565044188,-430.0,0.00019452,2]
[363065470,1748565044200,-430.0,0.00019452,2]
[363065472,1748565044209,-430.0,0.00019452,2]
[363065474,1748565044218,-751.52,0.00019452,2]
[363065476,1748565044227,-1195.51,0.00019452,2]
[363065478,1748565044237,-370.0,0.00019452,2]
[363065480,1748565044246,-430.0,0.00019452,2]
[363065482,1748565044256,-430.0,0.00019452,2]
[363065484,1748565044265,-430.0,0.00019452,2]
[363065486,1748565044276,-430.0,0.00019452,2]
[363065487,1748565044287,-430.0,0.00019452,2]
[363065489,1748565044296,-450.0,0.00019452,2]
[363065491,1748565044305,-520.16,0.00019452,2]
[363065493,1748565044314,-230.29724604,0.00019452,2]
[363065495,1748565044323,-430.0,0.00019452,2]
[363065497,1748565044332,-430.0,0.00019452,2]
[363065499,1748565044344,-430.0,0.00019452,2]
[363065501,1748565044353,-430.0,0.00019452,2]
[363065503,1748565044362,-530.0,0.00019452,2]
[363065505,1748565044371,-430.0,0.00019452,2]
[363065506,1748565044380,-430.0,0.00019452,2]
[363065508,1748565044389,-430.0,0.00019452,2]
[363065510,1748565044398,-430.0,0.00019452,2]
[363065512,1748565044407,-430.0,0.00019452,2]
[363065514,1748565044416,-430.0,0.00019452,2]
[363065516,1748565044425,-430.0,0.00019452,2]
[363065518,1748565044434,-430.0,0.00019452,2]
[363065520,1748565044443,-430.0,0.00019452,2]
[363065522,1748565044452,-430.0,0.00019452,2]
[363065524,1748565044461,-430.0,0.00019452,2]
[363065526,1748565044470,-430.0,0.00019452,2]
[363065528,1748565044479,-430.0,0.00019452,2]
[363065530,1748565044490,-430.0,0.00019452,2]
[363065532,1748565044499,-400.0,0.00019452,2]
[363065534,1748565044508,-430.0,0.00019452,2]
[363065536,1748565044518,-793.82,0.00019452,2]
[363065537,1748565044528,-430.0,0.00019452,2]
[363065539,1748565044536,-891.93,0.00019452,2]
[363065541,1748565044545,-430.0,0.00019452,2]
[363065543,1748565044554,-430.0,0.00019452,2]
[363065545,1748565044564,-430.0,0.00019452,2]
[363065547,1748565044574,-507.15727597,0.00019452,2]
[363065549,1748565044583,-430.0,0.00019452,2]
[363065551,1748565044596,-430.0,0.00019452,2]
[363065553,1748565044605,-430.0,0.00019452,2]
[363065555,1748565044614,-430.0,0.00019452,2]
[363065557,1748565044623,-430.0,0.00019452,2]
[363065559,1748565044632,-430.0,0.00019452,2]
[363065561,1748565044641,-430.0,0.00019452,2]
[363065563,1748565044650,-430.0,0.00019452,2]
[363065565,1748565044660,-430.0,0.00019452,2]
[363065567,1748565044670,-556.055127,0.00019452,2]
[363065568,1748565044679,-430.0,0.00019452,2]
[363065570,1748565044689,-430.0,0.00019452,2]
[363065572,1748565044698,-747.87,0.00019452,2]
[363065574,1748565044707,-430.0,0.00019452,2]
[363065576,1748565044716,-430.0,0.00019452,2]
[363065578,1748565044725,-430.0,0.00019452,2]
[363065580,1748565044735,-470.08806676,0.00019452,2]
[363065582,1748565044744,-430.0,0.00019452,2]
[363065584,1748565044754,-430.0,0.00019452,2]
[363065586,1748565044763,-271.87805171,0.00019452,2]
[363065588,1748565044772,-430.0,0.00019452,2]
[363065590,1748565044781,-430.0,0.00019452,2]
[363065592,1748565044790,-430.0,0.00019452,2]
[363065594,1748565044799,-430.0,0.00019452,2]
[363065596,1748565044809,-430.0,0.00019452,2]
[363065598,1748565044818,-430.0,0.00019452,2]
[363065600,1748565044827,-430.0,0.00019452,2]
[363065602,1748565044836,-430.0,0.00019452,2]
[363065603,1748565044848,-430.0,0.00019452,2]
[363065605,1748565044857,-410.0,0.00019452,2]
[363065607,1748565044866,-430.0,0.00019452,2]
[363065609,1748565044875,-500.0,0.00019473,2]
[363065611,1748565044884,-500.0,0.00019473,2]
[363065613,1748565044893,-500.0,0.00019473,2]
[363065615,1748565044902,-500.0,0.00019473,2]
[363065617,1748565044911,-500.0,0.00019473,2]
[363065619,1748565044920,-500.0,0.00019473,2]
[363065621,1748565044929,-546.69472309,0.00019473,2]
[363065623,1748565044938,-55451.60203448,0.000195,2]
[363065625,1748565044947,-500.0,0.00019534,2]
[363065627,1748565044956,-580.0,0.00019561,2]
[363065628,1748565044964,-500.0,0.00019721,2]
[363065630,1748565044974,-1000.0,0.00019721,2]
[363065632,1748565044983,-500.0,0.00019721,2]
[363065634,1748565044992,-500.0,0.00019721,2]
[363065636,1748565045001,-430.0,0.00019725,2]
[363065638,1748565045011,-430.0,0.00019725,2]
[363065640,1748565045019,-430.0,0.00019725,2]
[363065642,1748565045029,-687.18,0.00019725,2]
[363065644,1748565045038,-2058.47,0.00019725,2]
[363065646,1748565045047,-1120.97,0.00019725,2]
[363065648,1748565045056,-430.0,0.00019725,2]
[363065650,1748565045065,-500.0,0.00019725,2]
[363065652,1748565045075,-430.0,0.00019726,2]
[363065654,1748565045084,-430.0,0.00019726,2]
[363065656,1748565045094,-444.46000036,0.00019726,2]
[363065658,1748565045104,-430.0,0.00019726,2]
[363065660,1748565045113,-430.0,0.00019726,2]
[363065662,1748565045121,-430.0,0.00019726,2]
[363065664,1748565045130,-430.0,0.00019726,2]
[363065666,1748565045139,-435.08890576,0.00019726,2]
[363065668,1748565045148,-430.0,0.00019726,2]
[363065670,1748565045157,-430.0,0.00019726,2]
[363065671,1748565045166,-490.0,0.00019726,2]
[363065673,1748565045175,-338.79330762,0.00019726,2]
[363065675,1748565045184,-430.0,0.00019726,2]
[363065677,1748565045193,-430.0,0.00019726,2]
[363065679,1748565045205,-430.0,0.00019726,2]
[363065681,1748565045215,-418.78197573,0.00019726,2]
[363065683,1748565045223,-169.38599196,0.00019726,2]
[363065685,1748565045233,-260.99,0.00019726,2]
[363065687,1748565045243,-165.80184782,0.00019726,2]
[363065689,1748565045252,-430.0,0.00019726,2]
[363065691,1748565045261,-430.0,0.00019726,2]
[363065693,1748565045270,-430.0,0.00019726,2]
[363065695,1748565045280,-430.0,0.00019726,2]
[363065697,1748565045290,-430.0,0.00019726,2]
[363065699,1748565045299,-460.04,0.00019726,2]
[363065701,1748565045309,-430.0,0.00019726,2]
[363065703,1748565045318,-430.0,0.00019726,2]
[363065705,1748565045327,-430.0,0.00019726,2]
[363065707,1748565045336,-430.0,0.00019726,2]
[363065709,1748565045347,-573.62,0.00019726,2]
[363065710,1748565045356,-380.57029281,0.00019726,2]
[363065713,1748565045366,-338.46,0.00019726,2]
[363065714,1748565045375,-350.0,0.00019726,2]
[363065716,1748565045384,-430.0,0.00019726,2]
[363065718,1748565045393,-430.0,0.00019726,2]
[363065720,1748565045402,-430.0,0.00019726,2]
[363065722,1748565045412,-500.0,0.00019726,2]
[363065724,1748565045422,-430.0,0.00019726,2]
[363065726,1748565045431,-430.0,0.00019726,2]
[363065728,1748565045440,-186.06,0.00019726,2]
[363065730,1748565045449,-430.0,0.00019726,2]
[363065732,1748565045458,-430.0,0.00019726,2]
[363065734,1748565045467,-430.0,0.00019726,2]
[363065736,1748565045476,-430.0,0.00019726,2]
[363065738,1748565045485,-430.0,0.00019726,2]
[363065740,1748565045494,-430.0,0.00019726,2]
[363065742,1748565045503,-430.0,0.00019726,2]
[363065744,1748565045512,-430.0,0.00019726,2]
[363065746,1748565045522,-430.0,0.00019726,2]
[363065748,1748565045530,-430.0,0.00019726,2]
[363065750,1748565045539,-430.0,0.00019726,2]
[363065752,1748565045548,-430.0,0.00019726,2]
[363065755,1748565045557,-430.0,0.00019726,2]
[363065757,1748565045566,-430.0,0.00019726,2]
[363065759,1748565045575,-430.0,0.00019726,2]
[363065761,1748565045584,-430.0,0.00019726,2]
[363065763,1748565045595,-430.0,0.00019726,2]
[363065765,1748565045604,-430.0,0.00019726,2]
[363065767,1748565045614,-430.0,0.00019726,2]
[363065769,1748565045623,-430.0,0.00019726,2]
[363065771,1748565045632,-1720.94,0.00019726,2]
[363065773,1748565045641,-430.0,0.00019726,2]
[363065775,1748565045649,-1567.19,0.00019726,2]
[363065777,1748565045658,-371.61362936,0.00019726,2]
[363065779,1748565045667,-433.91,0.00019726,2]
[363065781,1748565045677,-430.0,0.00019726,2]
[363065783,1748565045686,-2408.54,0.00019726,2]
[363065785,1748565045695,-400.0,0.00019726,2]
[363065787,1748565045704,-740.37,0.00019726,2]
[363065789,1748565045713,-504.24,0.00019726,2]
[363065791,1748565045722,-430.0,0.00019726,2]
[363065793,1748565045731,-430.0,0.00019726,2]
[363065795,1748565045740,-430.0,0.00019726,2]
[363065797,1748565045750,-1178.01,0.00019726,2]
[363065799,1748565045759,-430.0,0.00019726,2]
[363065801,1748565045769,-490.0,0.00019726,2]
[363065803,1748565045778,-598.52,0.00019726,2]
[363065805,1748565045788,-377.5202167,0.00019726,2]
[363065806,1748565045797,-439.27862095,0.00019726,2]
[363065808,1748565045807,-430.0,0.00019726,2]
[363065810,1748565045816,-556.87,0.00019726,2]
[363065812,1748565045825,-430.0,0.00019726,2]
[363065814,1748565045834,-1193.21,0.00019726,2]
[363065816,1748565045844,-430.0,0.00019726,2]
[363065818,1748565045853,-430.0,0.00019726,2]
[363065820,1748565045862,-430.0,0.00019726,2]
[363065822,1748565045873,-430.0,0.00019726,2]
[363065824,1748565045882,-430.0,0.00019726,2]
[363065826,1748565045892,-418.18041715,0.00019726,2]
[363065828,1748565045901,-500.0,0.00019726,2]
[363065830,1748565045910,-430.0,0.00019726,2]
[363065832,1748565045920,-430.0,0.00019726,2]
[363065834,1748565045929,-1220.26,0.00019726,2]
[363065836,1748565045937,-430.0,0.00019726,2]
[363065838,1748565045947,-430.0,0.00019726,2]
[363065840,1748565045956,-430.0,0.00019726,2]
[363065842,1748565045965,-430.0,0.00019726,2]
[363065844,1748565045974,-430.0,0.00019726,2]
[363065846,1748565045983,-613.5,0.00019726,2]
[363065848,1748565045992,-430.0,0.00019726,2]
[363065850,1748565046001,-430.0,0.00019726,2]
[363065852,1748565046009,-430.0,0.00019726,2]
[363065854,1748565046019,-1480.27,0.00019726,2]
[363065856,1748565046028,-430.0,0.00019726,2]
[363065857,1748565046038,-430.0,0.00019726,2]
[363065859,1748565046047,-751.52,0.00019726,2]
[363065860,1748565046056,-1195.51,0.00019726,2]
[363065861,1748565046065,-430.0,0.00019726,2]
[363065862,1748565046075,-443.83603282,0.00019726,2]
[363065869,1748565046188,-430.0,0.00019726,2]
[363065871,1748565046200,-520.16,0.00019726,2]
[363065873,1748565046209,-430.0,0.00019726,2]
[363065875,1748565046219,-430.0,0.00019726,2]
[363065877,1748565046228,-430.0,0.00019726,2]
[363065880,1748565046239,-430.0,0.00019726,2]
[363065882,1748565046248,-430.0,0.00019726,2]
[363065884,1748565046258,-430.0,0.00019726,2]
[363065886,1748565046268,-481.24543449,0.00019726,2]
[363065888,1748565046277,-430.0,0.00019726,2]
[363065890,1748565046286,-430.0,0.00019726,2]
[363065892,1748565046295,-404.69954197,0.00019726,2]
[363065895,1748565046305,-430.0,0.00019726,2]
[363065896,1748565046314,-484.68204232,0.00019726,2]
[363065899,1748565046324,-430.0,0.00019726,2]
[363065901,1748565046333,-430.0,0.00019726,2]
[363065903,1748565046342,-401.47472214,0.00019726,2]
[363065905,1748565046353,-430.0,0.00019726,2]
[363065906,1748565046363,-430.0,0.00019726,2]
[363065908,1748565046372,-430.0,0.00019726,2]
[363065910,1748565046381,-430.0,0.00019726,2]
[363065912,1748565046390,-793.82,0.00019726,2]
[363065914,1748565046399,-430.0,0.00019726,2]
[363065916,1748565046408,-891.93,0.00019726,2]
[363065918,1748565046417,-430.0,0.00019726,2]
[363065920,1748565046427,-430.0,0.00019726,2]
[363065923,1748565046436,-430.0,0.00019726,2]
[363065924,1748565046444,-430.0,0.00019726,2]
[363065926,1748565046453,-430.0,0.00019726,2]
[363065928,1748565046462,-430.0,0.00019726,2]
[363065930,1748565046471,-560.41238734,0.00019726,2]
[363065932,1748565046480,-430.0,0.00019726,2]
[363065934,1748565046489,-430.0,0.00019726,2]
[363065936,1748565046500,-430.0,0.00019726,2]
[363065938,1748565046508,-430.0,0.00019726,2]
[363065940,1748565046518,-430.0,0.00019726,2]
[363065942,1748565046527,-430.0,0.00019726,2]
[363065944,1748565046536,-747.87,0.00019726,2]
[363065946,1748565046545,-430.0,0.00019726,2]
[363065948,1748565046555,-470.0,0.00019726,2]
[363065950,1748565046564,-430.0,0.00019726,2]
[363065952,1748565046573,-430.0,0.00019726,2]
[363065954,1748565046582,-430.0,0.00019726,2]
[363065956,1748565046592,-430.0,0.00019726,2]
[363065958,1748565046602,-430.0,0.00019726,2]
[363065960,1748565046611,-430.0,0.00019726,2]
[363065962,1748565046621,-430.0,0.00019726,2]
[363065964,1748565046630,-430.0,0.00019726,2]
[363065966,1748565046639,-430.0,0.00019726,2]
[363065968,1748565046648,-430.0,0.00019726,2]
[363065970,1748565046658,-430.0,0.00019726,2]
[363065972,1748565046667,-409.0,0.00019798,2]
[363065974,1748565046677,-430.0,0.00019999,2]
[363065976,1748565046686,-430.0,0.00019999,2]
[363065978,1748565046694,-430.0,0.00019999,2]
[363065980,1748565046703,-687.18,0.00019999,2]
[363065982,1748565046713,-2058.47,0.00019999,2]
[363065984,1748565046724,-1120.97,0.00019999,2]
[363065986,1748565046733,-430.0,0.00019999,2]
[363065988,1748565046742,-500.0,0.00019999,2]
[363065990,1748565046752,-436.97806649,0.0002,2]
[363065992,1748565046761,-430.0,0.0002,2]
[363065994,1748565046771,-430.0,0.0002,2]
[363065996,1748565046780,-430.0,0.0002,2]
[363065998,1748565046790,-430.0,0.0002,2]
[363066000,1748565046799,-430.0,0.0002,2]
[363066002,1748565046808,-430.0,0.0002,2]
[363066004,1748565046818,-430.0,0.0002,2]
[363066006,1748565046827,-430.0,0.0002,2]
[363066008,1748565046836,-546.28,0.0002,2]
[363066010,1748565046847,-430.0,0.0002,2]
[363066012,1748565046856,-430.0,0.0002,2]
[363066014,1748565046866,-430.0,0.0002,2]
[363066016,1748565046875,-430.0,0.0002,2]
[363066018,1748565046884,-430.0,0.0002,2]
[363066020,1748565046893,-500.0,0.0002,2]
[363066022,1748565046903,-430.0,0.0002,2]
[363066024,1748565046912,-430.0,0.0002,2]
[363066026,1748565046922,-430.0,0.0002,2]
[363066028,1748565046931,-430.0,0.0002,2]
[363066030,1748565046940,-430.0,0.0002,2]
[363066032,1748565046950,-430.0,0.0002,2]
[363066034,1748565046959,-430.0,0.0002,2]
[363066036,1748565046968,-430.0,0.0002,2]
[363066038,1748565046978,-430.0,0.0002,2]
[363066040,1748565046988,-430.0,0.0002,2]
[363066042,1748565046997,-430.0,0.0002,2]
[363066044,1748565047007,-430.0,0.0002,2]
[363066046,1748565047016,-430.0,0.0002,2]
[363066048,1748565047026,-430.0,0.0002,2]
[363066050,1748565047036,-430.0,0.0002,2]
[363066052,1748565047045,-430.0,0.0002,2]
[363066054,1748565047054,-1720.94,0.0002,2]
[363066056,1748565047063,-430.0,0.0002,2]
[363066058,1748565047073,-1567.19,0.0002,2]
[363066060,1748565047082,-433.91,0.0002,2]
[363066062,1748565047092,-430.0,0.0002,2]
[363066064,1748565047103,-2408.54,0.0002,2]
[363066066,1748565047113,-740.37,0.0002,2]
[363066068,1748565047122,-504.24,0.0002,2]
[363066070,1748565047131,-384.66269011,0.0002,2]
[363066072,1748565047141,-430.0,0.0002,2]
[363066074,1748565047150,-430.0,0.0002,2]
[363066076,1748565047159,-1178.01,0.0002,2]
[363066078,1748565047168,-430.0,0.0002,2]
[363066080,1748565047178,-598.52,0.0002,2]
[363066082,1748565047186,-430.0,0.0002,2]
[363066084,1748565047197,-556.87,0.0002,2]
[363066086,1748565047208,-430.0,0.0002,2]
[363066087,1748565047217,-1193.21,0.0002,2]
[363066090,1748565047226,-430.0,0.0002,2]
[363066092,1748565047237,-430.0,0.0002,2]
[363066094,1748565047245,-430.0,0.0002,2]
[363066096,1748565047255,-430.0,0.0002,2]
[363066098,1748565047263,-430.0,0.0002,2]
[363066099,1748565047274,-500.0,0.0002,2]
[363066101,1748565047283,-430.0,0.0002,2]
[363066103,1748565047292,-250.0,0.0002,2]
[363066105,1748565047303,-430.0,0.0002,2]
[363066107,1748565047312,-1220.26,0.0002,2]
[363066109,1748565047322,-430.0,0.0002,2]
[363066111,1748565047331,-189.36,0.0002,2]
[363066113,1748565047341,-362.97280464,0.0002,2]
[363066116,1748565047351,-1362.54240735,0.0002,30]
[363066118,1748565047361,-430.0,0.0002,2]
[363066119,1748565047371,-430.0,0.0002,2]
[363066122,1748565047381,-613.5,0.0002,2]
[363066123,1748565047390,-430.0,0.0002,2]
[363066125,1748565047398,-430.0,0.0002,2]
[363066128,1748565047409,-430.0,0.0002,2]
[363066130,1748565047418,-1480.27,0.0002,2]
[363066132,1748565047427,-430.0,0.0002,2]
[363066134,1748565047436,-430.0,0.0002,2]
[363066136,1748565047445,-751.52,0.0002,2]
[363066138,1748565047454,-1195.51,0.0002,2]
[363066140,1748565047463,-430.0,0.0002,2]
[363066142,1748565047472,-430.0,0.0002,2]
[363066144,1748565047482,-520.16,0.0002,2]
[363066146,1748565047491,-170.6,0.0002,2]
[363066148,1748565047500,-550.0,0.0002,2]
[363066150,1748565047510,-430.0,0.0002,2]
[363066152,1748565047519,-430.0,0.0002,2]
[363066153,1748565047528,-430.0,0.0002,2]
[363066155,1748565047538,-430.0,0.0002,2]
[363066157,1748565047547,-430.0,0.0002,2]
[363066159,1748565047556,-430.0,0.0002,2]
[363066161,1748565047565,-430.0,0.0002,2]
[363066164,1748565047575,-430.0,0.0002,2]
[363066166,1748565047584,-430.0,0.0002,2]
[363066168,1748565047593,-430.0,0.0002,2]
[363066170,1748565047604,-430.0,0.0002,2]
[363066172,1748565047613,-430.0,0.0002,2]
[363066173,1748565047622,-430.0,0.0002,2]
[363066175,1748565047631,-793.82,0.0002,2]
[363066177,1748565047641,-430.0,0.0002,2]
[363066179,1748565047651,-891.93,0.0002,2]
[363066181,1748565047660,-430.0,0.0002,2]
[363066183,1748565047670,-430.0,0.0002,2]
[363066185,1748565047679,-430.0,0.0002,2]
[363066187,1748565047689,-430.0,0.0002,2]
[363066189,1748565047698,-430.0,0.0002,2]
[363066191,1748565047707,-430.0,0.0002,2]
[363066193,1748565047717,-430.0,0.0002,2]
[363066195,1748565047726,-355.83895684,0.0002,2]
[363066197,1748565047735,-430.0,0.0002,2]
[363066199,1748565047744,-430.0,0.0002,2]
[363066201,1748565047752,-747.87,0.0002,2]
[363066203,1748565047761,-430.0,0.0002,2]
[363066205,1748565047770,-430.0,0.0002,2]
[363066207,1748565047780,-350.0,0.0002,2]
[363066209,1748565047789,-430.0,0.0002,2]
[363066211,1748565047798,-430.0,0.0002,2]
[363066213,1748565047807,-430.0,0.0002,2]
[363066215,1748565047817,-430.0,0.0002,2]
[363066217,1748565047826,-430.0,0.0002,2]
[363066219,1748565047835,-430.0,0.0002,2]
[363066221,1748565047845,-430.0,0.0002,2]
[363066223,1748565047855,-470.0,0.0002,2]
[363066225,1748565047864,-500.0,0.0002,2]
[363066227,1748565047874,-500.0,0.00020021,2]
[363066229,1748565047883,-177.77189404,0.00020021,2]
[363066231,1748565047892,-1000.0,0.00020021,2]
[363066233,1748565047902,-1044.381096,0.00020187,2]
[363066235,1748565047911,-160.0,0.00020272,2]
[363066237,1748565047919,-500.0,0.00020272,2]
[363066239,1748565047929,-694.063326,0.00020273,2]
[363066241,1748565047937,-694.063326,0.00020273,2]
[363066243,1748565047947,-942.336492,0.00020273,2]
[363066245,1748565047956,-942.336492,0.00020273,2]
[363066247,1748565047964,-151.51476,0.00020273,2]
[363066249,1748565047973,-151.51476,0.00020273,2]
[363066251,1748565047983,-430.0,0.00020273,2]
[363066253,1748565047992,-430.0,0.00020273,2]
[363066255,1748565048000,-430.0,0.00020273,2]
[363066257,1748565048009,-430.0,0.00020273,2]
[363066259,1748565048018,-430.0,0.00020273,2]
[363066261,1748565048027,-554.74,0.00020273,2]
[363066263,1748565048036,-420.0,0.00020273,2]
[363066265,1748565048045,-490.0,0.00020273,2]
[363066267,1748565048055,-430.0,0.00020273,2]
[363066269,1748565048064,-500.0,0.00020273,2]
[363066271,1748565048074,-430.0,0.00020273,2]
[363066273,1748565048083,-430.0,0.00020273,2]
[363066275,1748565048092,-430.0,0.00020273,2]
[363066277,1748565048105,-430.0,0.00020273,2]
[363066279,1748565048114,-430.0,0.00020273,2]
[363066281,1748565048123,-430.0,0.00020273,2]
[363066282,1748565048132,-430.0,0.00020273,2]
[363066284,1748565048141,-430.0,0.00020273,2]
[363066286,1748565048150,-430.0,0.00020273,2]
[363066288,1748565048159,-430.0,0.00020273,2]
[363066290,1748565048169,-430.0,0.00020273,2]
[363066292,1748565048179,-430.0,0.00020273,2]
[363066294,1748565048189,-430.0,0.00020273,2]
[363066296,1748565048201,-430.0,0.00020273,2]
[363066298,1748565048210,-430.0,0.00020273,2]
[363066300,1748565048219,-430.0,0.00020273,2]
[363066302,1748565048228,-1720.94,0.00020273,2]
[363066304,1748565048238,-430.0,0.00020273,2]
[363066306,1748565048246,-430.0,0.00020273,2]
[363066308,1748565048255,-1567.19,0.00020273,2]
[363066309,1748565048264,-433.91,0.00020273,2]
[363066310,1748565048275,-430.0,0.00020273,2]
[363066311,1748565048285,-2408.54,0.00020273,2]
[363066312,1748565048295,-740.37,0.00020273,2]
[363066313,1748565048304,-504.24,0.00020273,2]
[363066314,1748565048314,-430.0,0.00020273,2]
[363066315,1748565048324,-430.0,0.00020273,2]
[363066316,1748565048333,-1178.01,0.00020273,2]
[363066317,1748565048343,-430.0,0.00020273,2]
[363066318,1748565048354,-687.18,0.00020273,2]
[363066319,1748565048365,-598.52,0.00020273,2]
[363066320,1748565048374,-430.0,0.00020273,2]
[363066321,1748565048384,-556.87,0.00020273,2]
[363066322,1748565048393,-430.0,0.00020273,2]